bitfinex/quotes_SOLUSD_20240818
["timestamp","ask_amount","ask_price","bid_price","bid_amount"]
[1723975726150,0.25098,143.8,143.69,2.787574]
[1723975726452,45.0,143.81,143.69,2.787574]
[1723975726836,45.0,143.81,143.69,10.92475127]
[1723975727149,45.0,143.81,143.7,20.0]
[1723975727457,45.0,143.81,143.7,28.13717727]
[1723975728127,45.0,143.81,143.71,30.0]
[1723975728335,45.0,143.81,143.72,20.0]
[1723975729132,12.6856,143.82,143.72,20.0]
[1723975730561,12.6856,143.82,143.72,29.52871443]
[1723975730721,12.6856,143.82,143.73,16.12826889]
[1723975730925,12.6856,143.82,143.74,1.39130211]
[1723975731258,12.6856,143.82,143.75,8.13717727]
[1723975731425,12.6856,143.82,143.76,20.0]
[1723975731625,12.6856,143.82,143.76,28.13717727]
[1723975732061,12.6856,143.82,143.76,58.13717727]
[1723975732936,12.5761,143.87,143.77,8.13717727]
[1723975733125,0.12549,143.86,143.78,20.0]
[1723975733328,12.5761,143.87,143.78,28.13717727]
[1723975733525,0.89234632,143.86,143.78,28.13717727]
[1723975733757,12.5761,143.87,143.78,20.0]
[1723975734055,12.5761,143.87,143.77,20.0]
[1723975734557,0.12549,143.86,143.77,20.0]
[1723975734738,0.25098,143.86,143.76,20.0]
[1723975735054,45.25098,143.86,143.76,20.0]
[1723975735235,45.25098,143.86,143.76,28.13717727]
[1723975735747,12.5761,143.87,143.77,8.13717727]
[1723975736065,12.5761,143.87,143.78,20.0]
[1723975737060,12.5761,143.87,143.78,28.13717727]
[1723975737761,45.12549,143.86,143.78,28.13717727]
[1723975738468,12.5761,143.87,143.79,8.13717727]
[1723975738638,12.5761,143.87,143.8,20.0]
[1723975739346,0.89234632,143.86,143.8,20.0]
[1723975739655,12.5761,143.87,143.76,20.0]
[1723975739847,12.5761,143.87,143.77,30.0]
[1723975740040,12.5761,143.87,143.78,20.0]
[1723975740361,12.5761,143.87,143.78,28.13717727]
[1723975740550,12.5761,143.87,143.79,8.13717727]
[1723975740750,12.5761,143.87,143.8,50.0]
[1723975741457,12.5761,143.87,143.8,58.13717727]
[1723975742039,12.5761,143.91,143.81,8.13717727]
[1723975742241,45.89234632,143.9,143.82,20.0]
[1723975742455,0.89234632,143.89,143.82,20.0]
[1723975743147,45.0,143.9,143.82,20.0]
[1723975743457,45.0,143.9,143.82,50.0]
[1723975743843,45.0,143.9,143.82,20.0]
[1723975744045,45.0,143.9,143.77,20.0]
[1723975744046,12.70159,143.91,143.81,8.13717727]
[1723975744245,12.70159,143.91,143.82,20.0]
[1723975744455,12.5761,143.91,143.82,20.0]
[1723975744634,0.89234632,143.9,143.83,8.13717727]
[1723975744837,12.5761,143.91,143.84,20.0]
[1723975745161,12.5761,143.91,143.82,20.0]
[1723975745338,13.46844632,143.91,143.82,20.0]
[1723975745532,34.38844632,143.91,143.82,20.0]
[1723975745754,66.17098,143.9,143.82,20.0]
[1723975745961,0.89234632,143.89,143.82,20.0]
[1723975746460,46.14332632,143.9,143.82,20.0]
[1723975746652,0.89234632,143.89,143.82,20.0]
[1723975746856,0.12549,143.88,143.82,20.0]
[1723975747167,0.12549,143.89,143.82,20.0]
[1723975747366,0.12549,143.88,143.78,7.99109162]
[1723975747567,0.12549,143.88,143.75,62.9337]
[1723975747568,0.89234632,143.87,143.77,8.13717727]
[1723975748165,0.12549,143.86,143.77,8.13717727]
[1723975748340,0.50196,143.86,143.77,8.13717727]
[1723975749871,0.50196,143.86,143.76,30.0]
[1723975749872,12.5761,143.84,143.76,30.0]
[1723975750070,0.89234632,143.83,143.75,30.0]
[1723975750277,0.89234632,143.82,143.75,30.0]
[1723975750785,0.89234632,143.82,143.75,38.13717727]
[1723975751183,12.5761,143.84,143.75,8.13717727]
[1723975751368,0.12549,143.83,143.76,8.13717727]
[1723975751768,1.01783632,143.83,143.77,20.0]
[1723975752065,0.12549,143.83,143.77,20.0]
[1723975752267,12.5761,143.84,143.77,20.0]
[1723975753554,46.26881632,143.83,143.77,20.0]
[1723975755186,45.37647,143.83,143.73,20.0]
[1723975755355,0.89234632,143.82,143.73,28.13717727]
[1723975755559,66.29647,143.83,143.73,28.13717727]
[1723975755782,66.29647,143.83,143.74,8.13717727]
[1723975755998,66.29647,143.83,143.75,20.0]
[1723975756172,66.29647,143.83,143.74,8.13717727]
[1723975756173,0.12549,143.81,143.74,8.13717727]
[1723975756504,0.37647,143.81,143.72,30.6331]
[1723975756703,0.37647,143.81,143.7,8.13717727]
[1723975756999,0.37647,143.81,143.71,30.0]
[1723975757167,0.37647,143.81,143.72,8.13717727]
[1723975757576,0.89234632,143.8,143.72,8.13717727]
[1723975757788,0.25098,143.81,143.72,8.13717727]
[1723975757789,0.89234632,143.79,143.72,8.13717727]
[1723975758100,0.25098,143.81,143.72,8.13717727]
[1723975759276,0.25098,143.81,143.73,20.0]
[1723975760070,0.12549,143.81,143.73,20.0]
[1723975760264,0.25098,143.82,143.74,8.13717727]
[1723975760265,0.12549,143.82,143.74,8.13717727]
[1723975760501,0.37647,143.82,143.75,20.0]
[1723975761379,13.46844632,143.84,143.75,20.0]
[1723975761585,12.5761,143.84,143.75,8.13717727]
[1723975761788,12.5761,143.84,143.76,20.0]
[1723975764173,12.5761,143.84,143.77,8.13717727]
[1723975764375,12.5761,143.84,143.78,20.0]
[1723975766075,32.8762,143.85,143.78,20.0]
[1723975767594,0.89234632,143.84,143.78,20.0]
[1723975769876,32.8762,143.85,143.78,20.0]
[1723975770098,32.8762,143.85,143.79,8.13717727]
[1723975770305,32.8762,143.85,143.8,20.0]
[1723975771001,32.8762,143.85,143.8,28.13717727]
[1723975771896,0.12549,143.87,143.8,28.13717727]
[1723975772198,45.25098,143.87,143.8,28.13717727]
[1723975773111,46.4701,143.88,143.8,28.13717727]
[1723975774087,46.4701,143.88,143.8,58.13717727]
[1723975774401,0.8523121,143.94,143.81,8.13717727]
[1723975774402,51.4187,143.91,143.81,8.13717727]
[1723975774611,0.12549,143.9,143.82,20.0]
[1723975775612,0.25098,143.9,143.82,20.0]
[1723975775786,45.25098,143.9,143.82,20.0]
[1723975776299,45.25098,143.9,143.82,28.13717727]
[1723975776694,12.093,143.92,143.83,8.13717727]
[1723975776884,12.093,143.92,143.84,20.0]
[1723975777089,12.093,143.92,143.85,8.13717727]
[1723975777299,12.093,143.92,143.86,20.0]
[1723975778384,12.98534632,143.92,143.86,20.0]
[1723975778584,12.093,143.92,143.86,20.0]
[1723975778906,33.013,143.92,143.83,20.0]
[1723975779281,33.013,143.92,143.83,28.13717727]
[1723975780807,33.90534632,143.92,143.83,28.13717727]
[1723975781608,45.0,143.91,143.83,28.13717727]
[1723975781820,0.89234632,143.9,143.83,28.13717727]
[1723975781981,0.89234632,143.89,143.83,28.13717727]
[1723975783113,45.0,143.91,143.84,8.13717727]
[1723975783294,33.013,143.92,143.85,20.0]
[1723975784327,0.89234632,143.91,143.85,20.0]
[1723975785190,0.37647,143.93,143.85,20.0]
[1723975785191,20.92,143.93,143.85,20.0]
[1723975785396,65.92,143.92,143.85,20.0]
[1723975785984,65.92,143.92,143.83,20.0]
[1723975787211,0.25098,143.91,143.83,20.0]
[1723975787604,0.25098,143.91,143.84,8.13717727]
[1723975787802,0.25098,143.91,143.85,20.0]
[1723975789093,0.25098,143.91,143.83,20.0]
[1723975789297,0.25098,143.9,143.83,20.0]
[1723975789502,0.12549,143.89,143.83,20.0]
[1723975789704,0.25098,143.89,143.83,20.0]
[1723975790209,20.92,143.96,143.84,16.12826889]
[1723975790517,20.92,143.96,143.87,30.1]
[1723975790810,20.92,143.96,143.88,28.13717727]
[1723975791116,20.92,143.98,143.88,28.13717727]
[1723975792190,25.92,143.99,143.88,28.13717727]
[1723975794220,45.37647,143.98,143.88,28.13717727]
[1723975794719,45.25098,143.98,143.88,58.13717727]
[1723975795817,45.25098,143.98,143.88,28.13717727]
[1723975797102,45.25098,143.98,143.89,12.9557]
[1723975797298,66.17098,143.98,143.9,20.0]
[1723975797499,0.25098,143.97,143.9,20.0]
[1723975797696,0.25098,143.96,143.9,20.0]
[1723975799837,0.25098,143.96,143.87,30.1]
[1723975799838,0.12549,143.95,143.87,30.1]
[1723975800029,0.12549,143.94,143.87,30.1]
[1723975800329,0.37647,143.94,143.87,30.1]
[1723975800508,0.25098,143.94,143.87,30.1]
[1723975801121,0.12549,143.97,143.87,30.1]
[1723975801329,5.0,143.99,143.88,8.13717727]
[1723975801507,5.0,143.99,143.89,12.9557]
[1723975801702,5.0,143.99,143.9,8.13717727]
[1723975802202,5.0,143.99,143.92,31.3838]
[1723975802417,5.0,143.99,143.93,28.13717727]
[1723975802612,5.0,143.99,143.93,20.0]
[1723975803217,5.0,143.99,143.95,31.3838]
[1723975803404,5.0,143.99,143.96,20.0]
[1723975810109,5.0,143.99,143.97,1.38918807]
[1723975810308,0.03,144.0,143.98,12.9557]
[1723975810540,0.03,144.0,143.99,20.0]
[1723975815635,0.03,144.0,143.99,21.38885411]
[1723975815839,0.03,144.0,143.99,20.0]
[1723975820524,0.03,144.0,143.99,21.38877974]
[1723975821147,0.03,144.0,143.99,60.31403701]
[1723975821348,0.03,144.0,143.99,60.56501701]
[1723975821508,31.0669,144.11,143.99,60.56501701]
[1723975821711,31.0669,144.11,144.0,0.12549]
[1723975821939,31.0669,144.11,144.0,1.51409991]
[1723975822122,13.0008,144.14,144.03,42.98889]
[1723975822317,13.0008,144.14,144.04,1.51371319]
[1723975822644,13.0008,144.14,144.04,29.65089046]
[1723975822834,30.6578,144.16,144.04,29.65089046]
[1723975823024,30.6578,144.16,144.05,8.13717727]
[1723975823226,30.6578,144.16,144.06,21.38815047]
[1723975823426,30.6578,144.16,144.06,20.0]
[1723975823639,45.0442,144.2,144.08,45.1418]
[1723975823953,45.0442,144.2,144.09,20.0]
[1723975824150,52.29422233,144.2,144.09,20.0]
[1723975825244,80.14902233,144.2,144.09,20.0]
[1723975825444,52.29422233,144.2,144.09,20.0]
[1723975825629,52.29422233,144.2,144.06,8.13717727]
[1723975825630,52.29422233,144.2,144.07,20.0]
[1723975825837,45.50196,144.19,144.07,20.0]
[1723975826152,0.12549,144.18,144.07,20.0]
[1723975827045,0.12549,144.19,144.07,20.0]
[1723975828125,52.29422233,144.2,144.07,20.0]
[1723975828525,59.22912233,144.2,144.07,20.0]
[1723975828730,20.92,144.19,144.07,20.0]
[1723975829535,66.42196,144.18,144.07,20.0]
[1723975831745,21.04549,144.18,144.07,20.0]
[1723975832040,21.04549,144.18,144.07,28.96845504]
[1723975832850,0.12549,144.18,144.07,28.96845504]
[1723975833553,0.12549,144.16,144.07,28.96845504]
[1723975833744,45.50196,144.16,144.07,28.96845504]
[1723975833943,66.42196,144.16,144.07,28.96845504]
[1723975834778,66.42196,144.16,144.07,8.96845504]
[1723975834928,21.04549,144.14,144.04,32.4174]
[1723975835129,0.12549,144.11,144.04,32.4174]
[1723975835351,0.50196,144.11,144.04,32.4174]
[1723975835556,0.73179656,144.08,144.04,32.4174]
[1723975835951,0.73179656,144.08,144.04,41.38585504]
[1723975837039,0.73179656,144.08,144.05,20.0]
[1723975839172,0.73179656,144.08,144.02,20.0]
[1723975839471,0.73179656,144.08,144.05,8.96845504]
[1723975839645,0.73179656,144.08,144.06,20.0]
[1723975840943,0.73179656,144.08,144.04,20.0]
[1723975842454,0.73179656,144.08,144.04,28.96845504]
[1723975844372,0.73179656,144.08,144.03,32.4213]
[1723975845051,0.73179656,144.08,144.01,21.43895504]
[1723975845259,0.73179656,144.08,144.01,8.96845504]
[1723975845466,45.73179656,144.08,144.01,8.96845504]
[1723975846560,0.73179656,144.08,144.01,17.83271332]
[1723975846750,0.73179656,144.08,144.02,8.96845504]
[1723975847676,0.73179656,144.08,144.03,20.0]
[1723975850970,0.73179656,144.08,144.03,28.96845504]
[1723975854449,0.73179656,144.08,144.03,41.71845504]
[1723975854651,0.73179656,144.08,144.04,8.96845504]
[1723975855166,0.73179656,144.08,144.05,20.0]
[1723975856372,0.73179656,144.08,144.02,20.0]
[1723975858449,0.73179656,144.08,144.03,8.96845504]
[1723975858671,0.73179656,144.08,144.04,20.0]
[1723975861086,0.73179656,144.08,143.99,45.1713]
[1723975861260,0.73179656,144.08,144.0,28.96845504]
[1723975861658,31.2653,144.07,144.0,28.96845504]
[1723975862391,0.73179656,144.08,144.01,1.38869468]
[1723975862567,0.73179656,144.08,144.02,8.96845504]
[1723975862765,0.73179656,144.08,144.03,20.0]
[1723975863091,0.73179656,144.08,144.03,28.96845504]
[1723975863255,0.73179656,144.08,144.04,8.96845504]
[1723975863457,0.73179656,144.08,144.05,20.0]
[1723975865286,0.73179656,144.08,144.0,20.0]
[1723975865489,0.73179656,144.08,144.02,30.0]
[1723975865786,0.73179656,144.08,144.03,30.35679171]
[1723975865987,0.73179656,144.08,144.03,28.96845504]
[1723975866596,0.73179656,144.08,144.05,30.0]
[1723975866890,0.73179656,144.08,144.06,20.0]
[1723975867472,0.73179656,144.08,144.06,50.0]
[1723975869592,0.73179656,144.08,144.06,30.0]
[1723975870493,0.73179656,144.08,144.01,30.0]
[1723975870799,0.73179656,144.08,144.02,28.96845504]
[1723975871494,0.73179656,144.08,144.03,30.0]
[1723975871666,0.73179656,144.08,144.04,20.0]
[1723975872803,0.73179656,144.08,144.05,8.96845504]
[1723975875801,0.73179656,144.08,144.06,20.0]
[1723975881600,0.73179656,144.08,144.06,28.96845504]
[1723975883383,0.73179656,144.08,144.06,20.0]
[1723975883581,0.73179656,144.08,144.02,2.79368554]
[1723975883582,0.73179656,144.08,144.02,22.79368554]
[1723975883790,0.73179656,144.08,144.02,28.96845504]
[1723975884115,0.73179656,144.08,144.03,10.35671996]
[1723975884298,0.73179656,144.08,144.04,21.38826115]
[1723975884614,0.73179656,144.08,144.05,10.35671427]
[1723975884785,0.73179656,144.08,144.06,20.0]
[1723975884981,0.73179656,144.08,144.06,28.96845504]
[1723975885888,0.73179656,144.08,144.06,20.0]
[1723975886288,0.73179656,144.08,144.03,20.0]
[1723975887515,0.73179656,144.08,144.03,28.96845504]
[1723975887690,0.73179656,144.08,144.04,8.96845504]
[1723975888024,0.73179656,144.08,144.05,20.0]
[1723975888316,0.73179656,144.08,144.05,28.96845504]
[1723975888923,0.73179656,144.08,144.06,8.96845504]
[1723975891104,0.73179656,144.08,144.05,20.0]
[1723975891317,0.73179656,144.08,144.02,8.96845504]
[1723975891522,0.73179656,144.08,144.03,20.0]
[1723975891817,0.73179656,144.08,144.04,8.96845504]
[1723975891996,0.73179656,144.08,144.05,20.0]
[1723975893806,0.73179656,144.08,143.99,56.77964783]
[1723975894009,12.3898,144.07,143.99,8.96845504]
[1723975894326,33.3098,144.07,143.99,8.96845504]
[1723975894495,45.25098,144.06,143.99,8.96845504]
[1723975895326,66.17098,144.06,143.99,8.96845504]
[1723975895503,31.5306,144.05,143.99,8.96845504]
[1723975896028,0.12549,144.04,143.99,8.96845504]
[1723975897092,0.25098,144.04,143.95,8.86425828]
[1723975897293,0.25098,144.04,143.96,20.0]
[1723975897294,45.25098,144.04,143.96,20.0]
[1723975897496,45.25098,144.04,143.95,17.83271332]
[1723975897927,66.17098,144.04,143.95,8.96845504]
[1723975898226,31.5306,143.99,143.95,8.96845504]
[1723975898616,31.5306,143.99,143.91,650.1]
[1723975898816,31.5306,143.99,143.92,8.96845504]
[1723975899702,45.37647,143.98,143.92,8.96845504]
[1723975899919,0.12549,143.97,143.86,8.96845504]
[1723975900433,12.3898,143.96,143.86,8.96845504]
[1723975900608,0.12549,143.95,143.86,8.96845504]
[1723975900805,45.25098,143.95,143.86,8.96845504]
[1723975901008,31.5306,143.94,143.86,8.96845504]
[1723975901226,45.50196,143.93,143.86,8.96845504]
[1723975902542,45.50196,143.93,143.82,259.8]
[1723975902714,45.50196,143.93,143.83,30.0]
[1723975902913,45.50196,143.93,143.83,49.22310579]
[1723975903130,45.0,143.93,143.84,8.86425828]
[1723975903305,31.5306,143.94,143.85,8.96845504]
[1723975903722,0.12549,143.93,143.85,8.96845504]
[1723975904116,0.12549,143.93,143.86,20.0]
[1723975904328,31.5306,143.94,143.86,30.35860426]
[1723975904730,31.5306,143.94,143.86,28.96845504]
[1723975905208,31.5306,143.94,143.86,20.0]
[1723975905537,31.5306,143.94,143.83,38.86425828]
[1723975905538,31.5306,143.94,143.84,20.0]
[1723975905733,31.5306,143.94,143.85,30.0]
[1723975905914,31.5306,143.94,143.86,20.0]
[1723975906838,31.5306,143.94,143.86,28.96845504]
[1723975907940,31.5306,143.94,143.86,30.35856161]
[1723975908437,31.5306,143.94,143.87,8.96845504]
[1723975908609,31.5306,143.94,143.88,20.0]
[1723975909609,12.3898,143.96,143.89,40.35827717]
[1723975909812,12.3898,143.96,143.9,20.0]
[1723975911025,12.3898,143.96,143.9,21.38967756]
[1723975911838,12.3898,143.96,143.9,21.38969006]
[1723975912423,31.5306,143.98,143.9,30.3581451]
[1723975913434,31.5306,143.98,143.91,30.0]
[1723975913615,31.5306,143.98,143.92,21.3894691]
[1723975913822,31.5306,143.98,143.87,52.1063]
[1723975914021,31.5306,143.98,143.88,20.0]
[1723975914323,31.5306,143.98,143.88,28.96845504]
[1723975914627,31.5306,143.98,143.89,40.3580164]
[1723975914833,31.5306,143.98,143.9,1.38956374]
[1723975915040,31.5306,143.98,143.9,21.38956374]
[1723975916134,31.5306,143.98,143.9,30.35801878]
[1723975916331,13.3215,144.0,143.9,28.96845504]
[1723975916916,13.3215,144.0,143.91,1.38929865]
[1723975917120,13.3215,144.0,143.9,28.96845504]
[1723975917829,45.0,143.99,143.9,28.96845504]
[1723975918425,45.0,143.99,143.91,1.38955378]
[1723975919146,45.0,143.99,143.9,28.96845504]
[1723975919942,0.25098,143.98,143.9,28.96845504]
[1723975920322,0.12549,143.97,143.9,28.96845504]
[1723975922925,13.3215,144.0,143.91,1.38973239]
[1723975923140,13.3215,144.0,143.9,28.96845504]
[1723975923337,13.3215,144.0,143.91,1.38950077]
[1723975923543,13.3215,144.0,143.91,10.35795581]
[1723975923748,13.3215,144.0,143.92,20.0]
[1723975924035,13.3215,144.0,143.93,1.38924999]
[1723975924244,13.3215,144.0,143.92,28.96845504]
[1723975924245,32.5188,144.01,143.92,28.96845504]
[1723975924750,32.5188,144.01,143.92,20.0]
[1723975925117,32.5188,144.01,143.89,28.96845504]
[1723975925317,0.12549,144.0,143.89,8.96845504]
[1723975925537,45.50196,144.0,143.89,8.96845504]
[1723975926544,66.42196,144.0,143.89,8.96845504]
[1723975928021,0.12549,143.98,143.89,8.96845504]
[1723975928222,45.50196,143.98,143.89,8.96845504]
[1723975929455,45.50196,143.98,143.9,20.0]
[1723975930534,0.12549,143.96,143.84,657.35592301]
[1723975930845,66.42196,143.96,143.84,390.3]
[1723975931554,66.42196,143.96,143.84,399.26845504]
[1723975931728,66.42196,143.96,143.85,8.96845504]
[1723975933347,66.42196,143.96,143.86,20.0]
[1723975933530,33.8596,143.95,143.86,20.0]
[1723975933722,66.42196,143.94,143.86,20.0]
[1723975934247,66.42196,143.94,143.83,32.1063]
[1723975934248,0.12549,143.92,143.83,32.1063]
[1723975934430,45.12549,143.92,143.83,32.1063]
[1723975934635,45.12549,143.92,143.82,13.2498]
[1723975934636,66.04549,143.92,143.81,8.96845504]
[1723975934818,0.37647,143.91,143.82,30.0]
[1723975935344,0.12549,143.9,143.82,30.0]
[1723975935856,12.9396,143.89,143.81,8.96845504]
[1723975936244,52.46669,143.88,143.81,8.96845504]
[1723975936455,0.12549,143.87,143.77,17.83271332]
[1723975936826,45.37647,143.87,143.77,8.96845504]
[1723975937032,0.12549,143.86,143.77,8.96845504]
[1723975937237,0.37647,143.86,143.77,8.96845504]
[1723975937441,0.12549,143.85,143.77,8.96845504]
[1723975937844,20.92,143.83,143.73,42.01225828]
[1723975938130,45.50196,143.82,143.72,0.8523121]
[1723975938331,44.3608,143.84,143.73,8.86425828]
[1723975938539,44.3608,143.84,143.73,17.33948839]
[1723975939056,0.12549,143.83,143.73,8.47523011]
[1723975939258,45.50196,143.83,143.73,8.47523011]
[1723975939629,45.50196,143.83,143.72,0.8523121]
[1723975940057,66.42196,143.83,143.72,0.8523121]
[1723975940235,45.50196,143.83,143.72,0.8523121]
[1723975940950,66.42196,143.83,143.72,0.8523121]
[1723975941340,52.3412,143.82,143.72,0.8523121]
[1723975941542,45.50196,143.81,143.72,0.8523121]
[1723975947068,66.42196,143.81,143.72,0.8523121]
[1723975947277,0.12549,143.79,143.72,0.8523121]
[1723975947563,45.50196,143.79,143.72,0.8523121]
[1723975949466,45.25098,143.79,143.72,0.8523121]
[1723975951064,0.12549,143.77,143.72,0.8523121]
[1723975951359,0.25098,143.77,143.72,0.8523121]
[1723975951570,0.25098,143.76,143.72,0.8523121]
[1723975952359,0.25098,143.77,143.72,0.8523121]
[1723975952539,0.12549,143.78,143.72,0.8523121]
[1723975952739,0.50196,143.78,143.72,0.8523121]
[1723975954340,0.12549,143.76,143.72,0.8523121]
[1723975954541,45.37647,143.76,143.72,0.8523121]
[1723975954743,0.12549,143.75,143.72,0.8523121]
[1723975954963,0.37647,143.75,143.72,0.8523121]
[1723975955266,0.25098,143.75,143.72,0.8523121]
[1723975955568,45.25098,143.76,143.72,0.8523121]
[1723975955771,33.2469,143.77,143.72,0.8523121]
[1723975956442,0.12549,143.76,143.72,0.8523121]
[1723975956946,0.25098,143.76,143.72,0.8523121]
[1723975957145,45.25098,143.76,143.72,0.8523121]
[1723975957667,0.12549,143.75,143.72,0.8523121]
[1723975957842,0.25098,143.75,143.72,0.8523121]
[1723975959761,33.2469,143.77,143.72,0.8523121]
[1723975961556,47.39753876,143.8,143.72,0.8523121]
[1723975961753,46.1865,143.8,143.72,0.8523121]
[1723975962856,67.0965,143.8,143.72,0.8523121]
[1723975963271,45.50196,143.79,143.72,0.8523121]
[1723975963669,0.12549,143.78,143.72,0.8523121]
[1723975966269,45.37647,143.79,143.72,0.8523121]
[1723975966865,45.25098,143.79,143.72,0.8523121]
[1723975967176,0.12549,143.79,143.69,17.33948839]
[1723975967377,0.12549,143.79,143.7,21.51673558]
[1723975967887,46.31199,143.8,143.7,20.12549]
[1723975968179,46.31199,143.8,143.7,19.62549]
[1723975968883,0.12549,143.79,143.7,19.62549]
[1723975969086,0.12549,143.79,143.66,52.73785108]
[1723975969087,45.50196,143.79,143.66,52.23785108]
[1723975969275,0.8253279,143.78,143.68,30.0]
[1723975969479,0.12549,143.76,143.68,30.0]
[1723975970288,0.12549,143.76,143.69,20.0]
[1723975970779,0.37647,143.77,143.69,28.47523011]
[1723975970989,0.12549,143.76,143.66,44.9796]
[1723975971164,0.9508179,143.76,143.67,30.0]
[1723975971681,0.12549,143.74,143.66,44.9796]
[1723975971868,0.9508179,143.74,143.66,44.9796]
[1723975972073,0.12549,143.73,143.66,33.148]
[1723975972273,0.12549,143.73,143.67,20.0]
[1723975973178,0.25098,143.73,143.67,20.0]
[1723975973367,0.25098,143.72,143.65,20.0]
[1723975974075,0.25098,143.72,143.64,390.3]
[1723975974076,1.0763079,143.72,143.64,390.3]
[1723975974285,0.25098,143.71,143.64,389.8]
[1723975974965,0.25098,143.71,143.63,38.88443011]
[1723975975297,0.12549,143.69,143.63,38.88443011]
[1723975975501,0.25098,143.69,143.63,38.38443011]
[1723975975797,0.25098,143.69,143.63,30.4092]
[1723975976389,0.25098,143.69,143.59,39.27345828]
[1723975976598,0.25098,143.69,143.6,29.5]
[1723975976786,0.25098,143.68,143.6,29.5]
[1723975977293,13.1624,143.66,143.6,29.5]
[1723975977592,0.8253279,143.65,143.58,0.8523121]
[1723975977796,0.8253279,143.65,143.58,3.6419051]
[1723975977975,0.8253279,143.65,143.58,0.8523121]
[1723975978297,45.8253279,143.65,143.58,0.8523121]
[1723975978704,0.12549,143.64,143.58,0.8523121]
[1723975979371,0.9508179,143.64,143.58,0.8523121]
[1723975979889,0.25098,143.63,143.58,0.8523121]
[1723975980189,1.0763079,143.63,143.58,0.8523121]
[1723975980506,0.8253279,143.62,143.58,0.8523121]
[1723975980669,0.9508179,143.62,143.58,0.8523121]
[1723975981270,0.25098,143.61,143.58,0.8523121]
[1723975981991,13.1624,143.59,143.58,0.8523121]
[1723975982174,58.66436,143.59,143.58,0.8523121]
[1723975982396,0.12549,143.58,143.51,2.790913]
[1723975982699,45.50196,143.58,143.52,30.0]
[1723975982898,45.50196,143.58,143.52,29.80027051]
[1723975983198,45.50196,143.58,143.48,8.439119]
[1723975983569,45.50196,143.58,143.49,38.86425828]
[1723975983570,45.37647,143.58,143.49,38.86425828]
[1723975983772,0.12549,143.57,143.49,30.0]
[1723975983997,0.50196,143.57,143.49,30.0]
[1723975984171,0.50196,143.57,143.48,8.439119]
[1723975984375,0.50196,143.57,143.49,1.39363313]
[1723975984579,0.50196,143.57,143.47,9.83262284]
[1723975984794,0.50196,143.57,143.48,20.0]
[1723975984999,0.50196,143.57,143.49,1.39349586]
[1723975985406,0.50196,143.57,143.48,20.0]
[1723975985993,13.1624,143.59,143.48,37.30337728]
[1723975986303,31.1228,143.61,143.5,30.0]
[1723975986507,31.1228,143.61,143.51,21.39308403]
[1723975986684,31.1228,143.61,143.51,20.0]
[1723975987397,0.12549,143.6,143.52,30.0]
[1723975987710,0.12549,143.6,143.53,20.0]
[1723975988109,45.50196,143.6,143.53,20.0]
[1723975988398,45.50196,143.6,143.51,20.0]
[1723975990321,0.8253279,143.59,143.51,20.0]
[1723975990518,0.50196,143.58,143.46,50.44230988]
[1723975990693,0.25098,143.57,143.47,30.0]
[1723975990895,1.0763079,143.57,143.47,30.0]
[1723975991289,0.25098,143.56,143.47,38.439119]
[1723975991499,0.25098,143.56,143.48,8.439119]
[1723975991699,45.25098,143.56,143.48,17.30337728]
[1723975992211,13.12458,143.57,143.48,17.30337728]
[1723975992518,12.6349,143.6,143.48,17.30337728]
[1723975992691,12.6349,143.6,143.49,20.0]
[1723975993091,0.8253279,143.59,143.49,28.88226191]
[1723975993291,0.8253279,143.59,143.49,20.0]
[1723975993592,0.12549,143.58,143.47,20.0]
[1723975993918,0.12549,143.56,143.47,20.0]
[1723975994118,0.8253279,143.55,143.47,20.0]
[1723975995587,45.37647,143.56,143.47,20.0]